bitfinex/quotes_ETHUSD_20240925
["timestamp","ask_amount","ask_price","bid_price","bid_amount"]
[1727285932484,3.87082,2583.5,2583.0,3.87138]
[1727285932685,3.87079,2583.5,2583.0,3.87138]
[1727285932876,3.8705,2583.7,2583.1,3.87121]
[1727285933272,3.8705,2583.7,2583.1,3.87123]
[1727285933472,3.8705,2583.7,2583.0,3.87138]
[1727285933697,3.87072,2583.5,2583.1,0.83757065]
[1727285933904,3.8705,2583.7,2583.1,0.83757065]
[1727285934077,3.87026,2583.8,2583.3,4.67992]
[1727285934816,3.87026,2583.8,2583.3,0.809]
[1727285935011,4.67662,2584.1,2583.4,0.468002]
[1727285935217,3.86997,2584.0,2583.5,3.87062]
[1727285935878,0.0427352,2583.9,2583.5,3.87062]
[1727285936079,3.86992,2584.1,2583.6,0.8209332]
[1727285936280,3.9127852,2584.0,2583.6,0.8209332]
[1727285936585,3.87012,2583.9,2583.6,0.8209332]
[1727285937202,0.0427352,2583.8,2583.6,0.8209332]
[1727285937981,0.0427352,2583.8,2583.7,0.7507]
[1727285938181,0.0427352,2583.8,2583.7,5.16532232]
[1727285938489,0.0427352,2583.8,2583.7,1.29491232]
[1727285938673,0.0427352,2583.8,2583.4,4.62145]
[1727285938877,3.87005,2584.0,2583.5,3.8707]
[1727285938878,0.0427352,2583.7,2583.5,3.8707]
[1727285939109,3.87015,2583.9,2583.4,0.7507]
[1727285939295,3.87015,2583.9,2583.4,4.62152]
[1727285939501,0.0427352,2583.8,2583.4,4.62152]
[1727285939811,0.0427352,2583.8,2583.5,0.849252]
[1727285940176,0.0427352,2583.8,2583.5,4.719952]
[1727285940548,3.0,2584.6,2583.5,4.719872]
[1727285940549,0.0427352,2583.7,2583.5,4.719872]
[1727285940744,0.0427352,2583.7,2583.6,3.87056]
[1727285940899,3.86951,2584.3,2583.6,1.38454585]
[1727285941093,3.86998,2584.0,2583.6,1.38454585]
[1727285941339,3.87012,2583.9,2583.5,0.849252]
[1727285941539,3.9128552,2583.9,2583.5,0.849252]
[1727285942298,0.0967509,2583.8,2583.0,0.7599]
[1727285942547,3.87081,2583.5,2583.0,0.7599]
[1727285942707,0.04446504,2583.7,2583.0,1.223042]
[1727285942926,3.87112,2583.3,2583.0,0.7599]
[1727285943112,3.87034,2583.8,2583.1,3.8713]
[1727285943415,3.91487504,2583.7,2583.3,3.87098]
[1727285944148,0.04446504,2583.7,2583.0,0.7599]
[1727285944332,3.87082,2583.5,2583.0,0.7599]
[1727285944523,0.04421799,2583.4,2583.0,0.7599]
[1727285945019,0.04421799,2583.4,2583.2,3.87104]
[1727285945214,3.8705,2583.7,2583.2,3.87104]
[1727285945399,0.04421799,2583.3,2583.2,0.850223]
[1727285945606,3.87056,2583.6,2583.0,4.63126]
[1727285945607,3.87079,2583.5,2583.0,4.63126]
[1727285945805,3.87056,2583.6,2583.0,4.63126]
[1727285945806,0.04421799,2583.3,2583.0,0.7599]
[1727285946035,3.87086,2583.4,2582.7,3.87182]
[1727285946272,0.04421799,2583.2,2582.8,3.87173]
[1727285946402,3.87104,2583.3,2582.8,3.87173]
[1727285946606,3.87104,2583.3,2582.8,4.7677322]
[1727285946832,0.04421799,2583.2,2582.9,3.87161]
[1727285947141,0.04421799,2583.2,2582.8,0.8960022]
[1727285947341,3.87119,2583.2,2582.8,0.8960022]
[1727285947645,0.04408167,2583.1,2582.8,4.7677622]
[1727285948034,3.87093,2583.4,2582.9,3.9486049]
[1727285948250,0.04408167,2583.0,2582.9,3.9486749]
[1727285948452,3.87028,2583.8,2582.9,3.9486749]
[1727285948453,3.87049,2583.7,2583.2,3.87113]
[1727285948662,3.8049,2583.9,2583.2,4.69123]
[1727285948948,3.8049,2583.9,2583.4,3.87073]
[1727285949159,0.8049,2583.9,2583.5,3.87064]
[1727285949371,3.0,2584.3,2583.5,3.87064]
[1727285949372,3.87004,2584.0,2583.5,3.87064]
[1727285949729,3.86997,2584.0,2583.5,3.87064]
[1727285950471,7.36,2584.4,2583.7,3.87039]
[1727285950472,11.22946,2584.4,2583.7,3.87039]
[1727285950656,11.22939,2584.4,2583.8,4.257189]
[1727285950960,3.91385503,2584.3,2583.8,0.387039]
[1727285951163,3.86967,2584.2,2583.7,3.8704]
[1727285951368,3.91415207,2584.2,2583.7,3.8704]
[1727285952071,3.86989,2584.1,2583.6,3.87045]
[1727285952366,7.73985,2584.1,2583.6,3.87054]
[1727285952565,0.04448207,2584.0,2583.3,0.7712]
[1727285952768,0.04448207,2584.0,2583.5,3.87062]
[1727285952970,3.91446207,2584.0,2583.5,3.87062]
[1727285953333,0.04448207,2584.0,2583.3,1.68585665]
[1727285953560,3.87043,2583.7,2583.3,4.6422]
[1727285953829,3.87012,2583.9,2583.1,3.87131]
[1727285953830,3.87069,2583.6,2583.1,3.87131]
[1727285954026,0.7809,2583.9,2583.1,4.636401]
[1727285954227,0.04448207,2583.5,2583.0,4.65117]
[1727285954427,3.8707,2583.6,2583.0,4.65113]
[1727285954428,3.87069,2583.6,2583.0,4.65113]
[1727285954628,3.87069,2583.6,2583.0,0.7798]
[1727285954629,0.04436283,2583.4,2583.0,0.7798]
[1727285954823,3.87069,2583.6,2583.1,3.87129]
[1727285955065,0.04434579,2583.3,2583.0,0.465141]
[1727285955268,3.87072,2583.5,2582.9,3.87153]
[1727285955474,3.87035,2583.8,2583.3,3.8709]
[1727285955770,12.01112,2583.9,2583.3,3.87092]
[1727285955888,3.87068,2583.6,2583.1,3.8712]
[1727285956290,3.87088,2583.4,2582.9,3.87154]
[1727285956718,3.87065,2583.6,2582.9,3.87152]
[1727285956905,3.87065,2583.6,2583.1,3.87123]
[1727285957101,3.87065,2583.6,2583.1,4.258353]
[1727285957432,3.87075,2583.5,2583.1,4.258353]
[1727285957822,3.87043,2583.7,2583.1,4.258353]
[1727285958127,5.44223543,2583.9,2583.3,3.87098]
[1727285958438,4.66121543,2584.0,2583.5,3.87068]
[1727285958643,4.66121543,2584.0,2583.3,1.20421526]
[1727285958796,3.87004,2584.0,2583.4,0.57085418]
[1727285958997,3.87004,2584.0,2583.5,3.87063]
[1727285959438,0.79117543,2584.2,2583.8,3.87015]
[1727285959637,8.5464347,2584.4,2583.9,0.387015]
[1727285959638,4.66069543,2584.3,2583.9,0.387015]
[1727285959853,3.86952,2584.3,2583.9,0.387015]
[1727285960213,3.86967,2584.2,2583.6,3.87055]
[1727285960533,3.87005,2584.0,2583.5,3.87063]
[1727285960939,3.86992,2584.1,2583.6,3.87051]
[1727285961145,4.66095543,2584.2,2583.6,3.87051]
[1727285961146,3.86978,2584.2,2583.6,0.83119942]
[1727285961447,3.86991,2584.1,2583.6,4.70165942]
[1727285961657,3.87013,2583.9,2583.6,0.83119942]
[1727285962150,3.87013,2583.9,2583.5,3.87069]
[1727285962505,3.86993,2584.1,2583.5,3.87069]
[1727285962749,3.86991,2584.1,2583.6,3.87054]
[1727285963056,3.87021,2583.9,2583.4,4.44170418]
[1727285963344,0.79117543,2584.2,2583.5,3.87063]
[1727285963345,3.86993,2584.1,2583.5,3.87063]
[1727285963531,3.87013,2583.9,2583.5,4.77894042]
[1727285964040,3.86993,2584.1,2583.5,4.77894042]
[1727285964252,3.87005,2584.0,2583.5,4.77894042]
[1727285964403,3.87025,2583.9,2583.5,0.90831042]
[1727285964610,3.87025,2583.9,2583.4,0.57085418]
[1727285964611,3.87008,2584.0,2583.4,3.87085]
[1727285964809,0.79117543,2584.1,2583.3,4.64163]
[1727285965022,3.87032,2583.8,2583.3,4.64163]
[1727285965233,0.79117543,2584.1,2583.3,4.64163]
[1727285965234,3.87042,2583.7,2583.4,0.464163]
[1727285965703,0.0445843,2583.6,2583.4,0.464163]
[1727285966526,3.87028,2583.8,2583.4,0.464163]
[1727285966731,0.0445843,2583.5,2583.4,0.464163]
[1727285967451,3.87043,2583.7,2583.3,4.64163]
[1727285967654,0.0445843,2583.5,2583.4,3.87084]
[1727285967807,3.87013,2583.9,2583.3,4.64163]
[1727285968008,3.87013,2583.9,2583.5,3.87069]
[1727285968424,0.79117543,2584.0,2582.7,4.67855357]
[1727285968425,4.50432652,2583.6,2582.7,0.80669357]
[1727285968622,0.8189,2582.4,2581.3,0.7734]
[1727285968919,3.87351,2581.7,2581.3,0.7734]
[1727285969458,3.87315,2581.9,2580.9,0.7929]
[1727285969610,3.87376,2581.5,2580.9,0.7929]
[1727285969813,0.7965,2581.7,2580.9,0.7929]
[1727285970050,3.87402,2581.3,2580.9,0.7929]
[1727285970279,3.87402,2581.3,2580.5,0.77]
[1727285970549,3.87429,2581.2,2580.6,0.464532]
[1727285970939,3.87431,2581.1,2580.6,0.464532]
[1727285971545,3.87431,2581.1,2580.5,0.77]
[1727285972714,3.87432,2581.1,2580.5,0.77]
[1727285972913,3.87408,2581.3,2580.6,0.55]
[1727285973745,3.87408,2581.3,2580.5,0.77]
[1727285973746,3.87439,2581.1,2580.5,0.77]
[1727285973953,3.87439,2581.1,2580.6,0.764534]
[1727285974117,3.87439,2581.1,2580.5,0.77]
[1727285974118,3.87451,2581.0,2580.5,0.77]
[1727285975173,3.87439,2581.1,2580.5,0.77]
[1727285975386,3.87457,2581.0,2580.5,0.77]
[1727285975949,3.87519,2580.6,2580.2,0.7586]
[1727285976146,0.09685999,2581.0,2580.0,0.55327]
[1727285976147,3.87562,2580.3,2580.0,0.55327]
[1727285976593,5.29212652,2581.1,2580.0,0.55327]
[1727285976594,3.87576,2580.2,2580.0,0.55327]
[1727285977585,3.87581,2580.1,2580.0,0.55327]
[1727285977805,3.87576,2580.2,2580.0,0.55327]
[1727285978095,3.87581,2580.1,2580.0,0.55327]
[1727285978250,4.74786324,2580.1,2580.0,0.55327]
[1727285978456,4.650967,2580.1,2580.0,0.55327]
[1727285980407,3.87545,2580.4,2580.0,0.55327]
[1727285980727,0.8015,2580.8,2580.0,0.55327]
[1727285980728,3.87509,2580.6,2580.1,0.804]
[1727285980897,0.04101321,2580.3,2580.1,0.804]
[1727285981053,3.87523,2580.5,2580.1,0.804]
[1727285981252,0.04101321,2580.2,2580.1,0.804]
[1727285981450,3.87509,2580.6,2580.1,0.804]
[1727285981747,0.04101321,2580.2,2580.1,0.804]
[1727285981992,0.04101321,2580.2,2580.1,1.714922]
[1727285982177,7.74965,2580.8,2580.1,5.590612]
[1727285982507,0.03823274,2580.7,2580.2,3.87562]
[1727285982722,0.03823274,2580.7,2580.2,8.7531592]
[1727285982996,0.03823274,2580.7,2580.2,4.8775392]
[1727285983159,3.87454,2581.0,2580.4,3.87534]
[1727285983363,0.03836937,2580.9,2580.4,3.87534]
[1727285983582,0.03836937,2580.9,2580.4,4.75062892]
[1727285984305,0.03836937,2580.9,2580.4,4.75054892]
[1727285984509,0.03836937,2580.9,2580.4,0.87528892]
[1727285984663,3.87479,2580.8,2580.3,0.55]
[1727285984868,3.87455,2581.0,2580.3,4.42545]
[1727285985170,0.09686377,2581.2,2580.2,3.87557]
[1727285985171,7.74973,2580.8,2580.2,3.87557]
[1727285985367,0.03836937,2580.7,2580.2,4.698854]
[1727285985915,0.03836937,2580.7,2580.2,0.823284]
[1727285986085,0.03836937,2580.7,2580.4,3.87535]
[1727285986408,0.03836937,2580.6,2580.4,4.4002134]
[1727285986768,3.87409,2581.3,2580.7,3.87482]
[1727285986970,3.87409,2581.3,2580.5,5.28322652]
[1727285986971,0.03836937,2581.2,2580.8,4.262142]
[1727285987216,3.87302,2582.0,2580.8,4.262142]
[1727285987217,0.7537,2582.0,2581.1,0.7554]
[1727285987403,3.87365,2581.6,2581.1,0.7554]
[1727285987971,3.87335,2581.8,2581.1,0.7554]
[1727285988172,3.87342,2581.7,2581.2,3.87416]
[1727285988378,3.87335,2581.8,2581.2,0.905389]
[1727285988585,3.87335,2581.8,2581.3,0.0772129]
[1727285988788,3.87304,2582.0,2581.4,0.55]
[1727285989113,11.23275,2582.2,2581.7,3.87333]
[1727285989114,3.87275,2582.2,2581.7,3.87333]
[1727285989472,3.8731,2582.0,2581.6,0.7559]
[1727285989674,7.74618,2582.0,2581.6,0.7559]
[1727285989900,3.87286,2582.1,2581.6,0.7559]
[1727285990426,3.87297,2582.0,2581.6,0.7559]
[1727285991621,3.87297,2582.0,2581.5,3.87369]
[1727285991921,3.87303,2582.0,2581.4,6.87378]
[1727285992115,3.87303,2582.0,2581.4,8.024139]
[1727285992277,3.87314,2581.9,2581.4,4.150359]
[1727285992620,3.87298,2582.0,2581.4,4.150359]
[1727285992793,7.74607,2582.0,2581.5,3.87369]
[1727285992982,3.87298,2582.0,2581.5,3.87369]
[1727285993284,3.87275,2582.2,2581.5,3.87369]
[1727285993492,5.076825,2582.5,2581.5,3.87369]
[1727285993802,3.87305,2582.0,2581.5,3.87369]
[1727285995523,3.87305,2582.0,2581.4,3.0]
[1727285995679,3.8732,2581.9,2581.4,3.0]
[1727285996013,0.03929964,2581.9,2581.4,6.87378]
[1727285997023,3.91243964,2581.9,2581.4,6.87378]
[1727285997597,3.91243964,2581.9,2581.4,3.87378]
[1727285997976,0.03929964,2581.9,2581.3,4.62982]
[1727285998184,3.91241964,2581.9,2581.4,3.87384]
[1727285998619,0.03929964,2581.9,2581.4,3.87384]
[1727285998916,0.03929964,2581.9,2581.4,7.74762]
[1727285999219,0.03929964,2581.9,2581.6,3.87346]
[1727285999711,7.7455,2582.2,2581.6,3.87346]
[1727285999890,0.03986277,2581.8,2581.6,3.87346]
[1727286000089,7.7455,2582.2,2581.6,3.87346]
[1727286000430,4.4614225,2582.4,2581.5,0.55]
[1727286000629,0.03986277,2582.1,2581.8,3.87316]
[1727286000925,3.8724,2582.4,2581.9,3.87302]
[1727286001101,0.03982865,2582.0,2581.9,3.87302]
[1727286001308,3.8724,2582.4,2581.9,3.87302]
[1727286001504,0.03982865,2582.0,2581.9,5.20832]
[1727286001705,3.87214,2582.6,2582.1,3.87275]
[1727286002098,3.87224,2582.5,2582.1,3.87275]
[1727286002291,3.87185,2582.8,2582.2,7.74512]
[1727286002620,3.87185,2582.8,2581.9,1.3353]
[1727286002793,3.87194,2582.7,2582.2,3.8726]
[1727286003317,4.341735,2582.8,2582.2,3.8726]
[1727286003527,3.87192,2582.7,2582.2,3.8726]
[1727286003678,3.0,2583.1,2582.0,0.55]
[1727286003679,8.1645,2583.3,2582.3,0.07711882]
[1727286003883,8.1645,2583.3,2582.0,0.55]
[1727286003884,4.67562,2583.3,2582.7,3.8718]
[1727286004084,4.67562,2583.3,2582.5,4.64922]
[1727286004085,3.87118,2583.2,2582.5,4.64922]
[1727286004277,3.87146,2583.0,2582.5,4.64922]
[1727286004482,3.87132,2583.1,2582.6,3.87206]
[1727286004712,3.87132,2583.1,2582.1,6.8728]
[1727286004713,3.87201,2582.7,2582.1,0.8243]
[1727286005017,4.259361,2582.6,2582.1,4.69702]
[1727286005195,3.87199,2582.7,2582.2,3.87259]
[1727286005392,3.87199,2582.7,2582.2,3.87258]
[1727286005692,3.87209,2582.6,2582.1,3.8243]
[1727286005907,4.646558,2582.6,2582.1,0.8243]
[1727286006199,4.646558,2582.6,2581.9,3.87299]
[1727286006200,3.87245,2582.4,2581.9,3.87299]
[1727286006531,3.87252,2582.3,2581.8,4.69742]
[1727286006880,3.87252,2582.3,2581.6,6.87347]
[1727286007182,7.74607,2582.0,2581.5,4.69842]
[1727286007414,3.91351151,2581.9,2581.5,0.8248]
[1727286007595,7.78675151,2581.9,2581.5,0.8248]
[1727286007915,3.87328,2581.8,2581.5,0.8248]
[1727286008294,0.04011012,2581.7,2581.4,3.0]
[1727286008620,0.04011012,2581.7,2579.7,20.79504814]
[1727286008621,0.04011012,2581.7,2580.6,3.87498]
[1727286008622,3.87429,2581.2,2580.6,3.87498]
[1727286008825,3.87435,2581.1,2580.6,4.63878]
[1727286009224,0.03994807,2581.0,2580.6,4.63878]
[1727286009520,0.03994807,2581.0,2580.3,0.8114]
[1727286009727,3.87486,2580.8,2580.3,1.280099]
[1727286009886,3.87486,2580.8,2580.3,0.8114]
[1727286009887,7.74971,2580.8,2580.3,0.8114]
[1727286010084,0.03990542,2580.7,2580.3,0.8114]
[1727286010282,0.03990542,2580.7,2580.0,0.55327]
[1727286010283,3.87514,2580.6,2580.0,8.30503]
[1727286010583,0.03947029,2580.5,2580.2,3.87555]
[1727286010816,3.87484,2580.8,2580.2,3.87555]
[1727286010995,0.03947029,2580.4,2580.2,3.87555]
[1727286011194,3.87484,2580.8,2580.2,3.87555]
[1727286011511,0.03947029,2580.7,2580.2,3.87555]
[1727286012026,3.91439029,2580.7,2580.2,3.87555]
[1727286012227,3.87514,2580.6,2580.1,0.55]
[1727286012795,3.91472029,2580.5,2580.0,4.42915]
[1727286013025,3.91472029,2580.5,2580.0,0.55327]
[1727286013026,0.03947029,2580.5,2580.0,0.55327]
[1727286013331,0.03947029,2580.5,2580.4,3.87536]
[1727286013631,7.74849,2581.2,2580.6,3.87497]
[1727286013923,0.7967,2581.4,2580.9,3.8746]
[1727286013924,4.67065,2581.4,2580.9,3.8746]
[1727286014129,8.54466,2581.4,2580.9,3.8746]
[1727286014436,3.87404,2581.3,2580.7,7.7497]
[1727286014592,3.87404,2581.3,2580.7,8.137191]
[1727286014789,3.87404,2581.3,2580.8,3.87472]
[1727286015018,4.67065,2581.4,2580.9,3.8746]
[1727286015214,4.67065,2581.4,2580.7,4.262281]
[1727286015215,3.87403,2581.3,2580.7,8.137091]
[1727286015418,3.87403,2581.3,2580.8,3.87473]
[1727286015622,3.87418,2581.2,2580.7,0.387491]
[1727286015934,3.87418,2581.2,2580.6,4.42504]
[1727286015935,3.87431,2581.1,2580.6,4.42504]
[1727286016819,3.87433,2581.1,2580.6,4.42504]
[1727286017125,3.87418,2581.2,2580.6,4.42504]
[1727286017304,7.74845,2581.2,2580.6,5.4085345]
[1727286017921,3.87439,2581.1,2580.6,1.5334945]
[1727286018130,3.87446,2581.0,2580.4,0.7597]
[1727286018291,3.87469,2580.9,2580.4,0.7597]
[1727286018690,3.87431,2581.1,2580.4,4.63505]
[1727286018892,3.87431,2581.1,2580.5,0.763505]
[1727286019123,3.87428,2581.2,2580.7,3.8749]
[1727286019432,3.87433,2581.1,2580.6,3.87498]
[1727286019597,3.87455,2581.0,2580.5,0.763505]
[1727286020310,3.87476,2580.9,2580.4,4.63496]
[1727286020507,3.87476,2580.9,2580.1,0.7596]
[1727286020508,0.7657,2580.9,2580.1,0.7596]
[1727286020815,3.87514,2580.6,2580.1,4.63534]
[1727286021026,3.87514,2580.6,2580.1,5.541784]
[1727286023128,3.87538,2580.4,2580.1,0.7596]
[1727286023432,7.75087,2580.4,2580.0,0.55327]
[1727286023595,3.87545,2580.4,2580.0,0.55327]
[1727286024709,3.87558,2580.3,2580.0,0.55327]
[1727286024898,3.87545,2580.4,2580.0,0.55327]
[1727286025136,3.87577,2580.2,2580.0,0.55327]
[1727286025841,0.03859992,2580.1,2580.0,0.55327]
[1727286028496,3.87554,2580.3,2580.0,0.55327]
[1727286028749,0.03859992,2580.1,2580.0,0.55327]
[1727286028912,3.87544,2580.4,2580.0,0.55327]
[1727286029113,0.03859992,2580.1,2580.0,0.55327]
[1727286029606,3.87544,2580.4,2580.0,0.55327]
[1727286029921,0.03859992,2580.3,2580.0,0.55327]
[1727286030124,3.91414992,2580.3,2580.0,0.55327]
[1727286030782,3.87568,2580.2,2580.0,0.55327]
[1727286031245,0.03765228,2580.1,2580.0,0.55327]
[1727286031413,4.48089763,2580.1,2580.0,0.55327]
[1727286031816,4.51946657,2580.1,2580.0,0.55327]
[1727286032236,4.42256445,2580.1,2580.0,0.55327]
[1727286032445,3.95203122,2580.1,2580.0,0.55327]
[1727286036345,4.04893489,2580.1,2580.0,0.55327]
[1727286036552,3.95203122,2580.1,2580.0,0.55327]
[1727286039141,4.04893588,2580.1,2580.0,0.55327]
[1727286039350,3.95203122,2580.1,2580.0,0.55327]
[1727286039509,4.81400234,2580.1,2580.0,0.55327]
[1727286041626,3.95203122,2580.1,2580.0,0.55327]
[1727286042842,0.07622122,2580.1,2580.0,0.55327]
[1727286043050,7.75083,2580.4,2580.0,0.55327]
[1727286043274,0.07622123,2580.1,2580.0,0.55327]
[1727286043428,3.87538,2580.4,2580.0,0.55327]
[1727286043429,3.87554,2580.3,2580.0,1.463151]
[1727286043631,0.07622123,2580.2,2580.0,0.55327]
[1727286043832,3.87482,2580.8,2580.0,0.55327]
[1727286044019,3.8753,2580.5,2580.0,0.55327]
[1727286044221,3.8753,2580.5,2580.0,4.4292]
[1727286044538,0.07622123,2580.4,2580.0,4.4292]
[1727286044739,3.95160123,2580.4,2580.0,4.4292]
[1727286045054,0.07622123,2580.3,2580.0,4.4292]
[1727286046057,0.07622123,2580.3,2580.1,3.87579]
[1727286046351,0.07622123,2580.3,2580.0,1.463142]
[1727286046658,0.07327085,2580.2,2580.0,5.339102]
[1727286047024,3.87517,2580.6,2580.0,1.463142]
[1727286047331,7.751,2580.4,2580.0,0.55327]
[1727286047725,3.8755,2580.4,2580.0,0.55327]
[1727286047925,0.07329651,2580.3,2580.0,0.55327]
[1727286048453,0.07329651,2580.3,2580.0,8.3051]
[1727286048657,0.07329651,2580.3,2580.0,5.70521049]
[1727286048956,3.87529,2580.5,2580.0,5.70521049]
[1727286049417,0.07329651,2580.4,2580.0,5.70521049]
[1727286050273,3.94872651,2580.4,2580.0,5.70521049]
[1727286050470,3.87577,2580.2,2580.0,0.55327]
[1727286050688,3.87581,2580.1,2580.0,0.55327]
[1727286051057,3.94910651,2580.1,2580.0,0.55327]
[1727286051275,4.04600572,2580.1,2580.0,0.55327]
[1727286051447,4.04600786,2580.1,2580.0,0.55327]
[1727286051652,3.94910651,2580.1,2580.0,0.55327]
[1727286052280,4.04600611,2580.1,2580.0,0.55327]
[1727286052496,3.94910651,2580.1,2580.0,0.55327]
[1727286053746,0.07329651,2580.1,2580.0,0.55327]
[1727286053970,3.94910651,2580.1,2580.0,0.55327]
[1727286054184,0.07329651,2580.1,2580.0,0.55327]
[1727286055861,0.07329651,2580.1,2579.1,0.45201833]
[1727286056063,0.07329651,2580.1,2579.7,3.87627]
[1727286056583,0.07329651,2580.1,2579.7,3.87641]
[1727286056785,3.8757,2580.2,2579.7,3.87641]
[1727286056948,0.07329651,2580.0,2579.7,3.87641]
[1727286057151,3.87537,2580.4,2579.9,3.87606]
[1727286057356,3.87523,2580.5,2579.8,7.53844495]
[1727286057589,3.87523,2580.5,2580.0,3.87595]
[1727286057799,3.87523,2580.5,2580.0,3.87587]
[1727286058758,3.87523,2580.5,2580.1,0.7578]
[1727286059073,7.75054,2580.5,2580.1,0.7578]
[1727286059400,3.87523,2580.5,2580.1,0.7578]
[1727286059703,3.87537,2580.4,2580.1,0.7578]
[1727286059903,0.79542263,2580.7,2579.8,0.7895]
[1727286059904,3.87552,2580.3,2579.8,0.7895]
[1727286060063,3.87552,2580.3,2579.5,4.66617]
[1727286060064,5.056292,2580.3,2579.5,4.66617]
[1727286060266,5.056292,2580.3,2579.6,3.87646]
[1727286060267,3.87582,2580.1,2579.6,3.87646]
[1727286060592,0.79542263,2580.6,2580.0,3.66220495]
[1727286060852,3.87494,2580.7,2580.2,8.32734495]
[1727286060964,3.87494,2580.7,2580.2,4.45170495]
[1727286061180,3.87494,2580.7,2580.2,8.32726495]
[1727286061361,3.87504,2580.7,2580.0,3.66220495]
[1727286061561,3.87523,2580.5,2580.0,3.66220495]
[1727286061760,3.87523,2580.5,2579.9,0.7895]
[1727286061961,3.87523,2580.5,2579.3,5.08697036]
[1727286061962,3.66220495,2580.1,2579.2,0.7895]
[1727286062180,3.87693,2579.4,2578.9,0.7895]
[1727286062416,4.66965,2579.7,2578.6,0.7895]
[1727286062417,3.87765,2578.9,2578.6,0.7895]
[1727286062579,3.8777,2578.9,2578.6,0.32444312]
[1727286063081,0.09694755,2578.8,2578.3,0.06649873]
[1727286063283,3.87792,2578.7,2578.3,0.06649873]
[1727286063503,4.80788001,2578.6,2578.3,0.06649873]
[1727286063707,0.8328,2578.6,2578.3,0.06649873]
[1727286064018,3.87765,2578.9,2578.3,0.06649873]
[1727286064019,4.71045,2578.9,2578.3,3.94491873]
[1727286064184,0.8328,2578.9,2578.4,3.87832]
[1727286064374,3.87728,2579.2,2578.6,3.87804]
[1727286064586,3.8771,2579.3,2578.7,0.7527]
[1727286064786,5.22897266,2579.3,2578.7,0.7527]
[1727286065221,9.10611266,2579.3,2578.7,0.7527]
[1727286065522,5.22897266,2579.3,2578.7,0.7527]
[1727286065723,3.87721,2579.2,2578.7,0.7527]
[1727286065921,5.22897266,2579.3,2578.4,3.87829]
[1727286065922,3.87733,2579.1,2578.4,8.56605]
[1727286066124,3.87733,2579.1,2578.5,3.87819]
[1727286066293,3.87763,2578.9,2578.4,5.9956516]
[1727286066496,3.87733,2579.1,2578.4,5.9956516]
[1727286066821,0.09694168,2579.0,2578.4,5.9956516]
[1727286067212,3.97444168,2579.0,2578.4,5.9956516]
[1727286067518,3.8775,2579.0,2578.4,5.9956516]
[1727286067724,3.87733,2579.1,2578.4,10.6461805]
[1727286067908,9.10609266,2579.3,2578.6,3.87798]
[1727286068231,3.87718,2579.2,2578.6,3.87798]
[1727286068519,3.87735,2579.1,2578.6,0.7722489]
[1727286068820,0.60052727,2579.2,2578.6,0.7722489]
[1727286069117,3.87718,2579.2,2578.6,4.6502289]
[1727286069731,0.7763,2579.4,2578.6,4.6502289]
[1727286069732,0.7763,2579.4,2578.6,0.7722489]
[1727286069945,0.7763,2579.4,2578.7,3.87791]
[1727286070101,3.8771,2579.3,2578.7,3.87791]
[1727286070299,0.7763,2579.4,2578.8,0.07744684]
[1727286070501,11.23649,2579.7,2579.1,3.87724]
[1727286070700,0.06848782,2579.3,2579.1,4.341124]
[1727286070900,11.23649,2579.7,2579.1,3.87724]
[1727286071103,0.06848782,2579.2,2579.1,3.87724]
[1727286071433,3.8765,2579.7,2579.1,8.39010598]
[1727286071589,3.8765,2579.7,2579.1,9.11541658]
[1727286071789,0.06848782,2579.6,2579.2,3.87716]
[1727286072196,0.06848782,2579.6,2579.3,3.87694]
[1727286072396,5.46663263,2580.1,2579.4,3.87679]
[1727286072397,3.87606,2580.0,2579.4,3.87679]
[1727286072715,3.87628,2579.8,2579.4,0.7253106]
[1727286072897,0.06848782,2579.9,2579.4,4.6020706]
[1727286073228,0.06848782,2579.8,2579.5,1.23620706]
[1727286073393,3.87598,2580.0,2579.5,1.23620706]
[1727286073589,0.06848782,2579.9,2579.5,1.5013106]
[1727286074209,3.94461782,2579.9,2579.5,1.5013106]
[1727286074833,0.06848782,2579.9,2579.5,1.5013106]
[1727286075198,0.06848782,2579.9,2579.6,3.87655]
[1727286075395,3.87613,2579.9,2579.5,1.5013106]
[1727286075596,3.87613,2579.9,2579.5,0.7253106]
[1727286075597,0.06848782,2579.8,2579.5,0.7253106]
[1727286076194,6.87554,2580.3,2579.7,3.87641]
[1727286076396,3.9454089,2580.2,2579.7,3.87641]
[1727286076717,3.9454089,2580.2,2579.6,3.87657]
[1727286076718,3.87583,2580.1,2579.6,4.6018806]
[1727286076892,0.0697389,2580.2,2579.8,3.87625]
[1727286077094,3.87554,2580.3,2579.8,3.87625]
[1727286077295,0.0697389,2580.1,2579.8,3.87625]
[1727286077591,3.87532,2580.5,2579.9,3.87603]
[1727286077592,0.0697389,2580.0,2579.9,3.87603]
[1727286077926,1.19313395,2580.9,2579.9,3.87603]
[1727286077927,4.65566,2581.0,2580.5,3.8752]
[1727286078229,4.65566,2581.0,2580.3,0.7574]
[1727286078230,0.7812,2581.3,2580.3,9.14567598]
[1727286078433,3.87493,2580.7,2580.3,5.27026598]
[1727286078619,3.87493,2580.7,2580.3,0.7574]
[1727286078821,3.87536,2580.4,2580.3,0.6783723]
[1727286079029,4.66010547,2580.4,2580.3,0.6783723]
[1727286082309,4.75699696,2580.4,2580.3,0.6783723]
[1727286082637,5.43600547,2580.4,2580.3,0.6783723]
[1727286083368,3.87524,2580.5,2580.3,0.6783723]
[1727286083500,0.7759,2580.7,2580.3,0.6783723]
[1727286083501,4.65096,2580.7,2580.3,0.6783723]
[1727286083701,3.87479,2580.8,2580.3,0.6783723]
[1727286084441,4.65031,2581.1,2580.4,4.51286598]
[1727286084735,3.87441,2581.1,2580.6,3.87498]
[1727286084931,3.87441,2581.1,2580.5,0.8836783]
[1727286085135,3.87454,2581.0,2580.5,4.68154]